[Event "4th ChessMates Murmansk 2020"]
[Site "Murmansk"]
[Date "2020.03.13"]
[Round "1.6"]
[White "Myskovski, Deniss"]
[Black "Kien, Clovis"]
[Result "0-1"]
[ECO "B32"]
[WhiteElo "1205"]
[BlackElo "1765"]
[Annotator "NA RC"]
[PlyCount "62"]
[EventDate "2020.03.13"]
[EventType "team-tourn"]
[EventCountry "RUS"]
[SourceTitle "playchess.com"]
[Source "ChessBase"]
[SourceQuality "1"]
[TimeControl "5400+30"]

1. e4 {[%emt 0:00:00]} c5 2. Nf3 {[%emt 0:00:00]} Nc6 {[%emt 0:00:00]} 3. d4 {[%emt 0:00:00]} cxd4 {[%emt 0:00:00]} 4. Nxd4 {[%emt 0:00:07]} e5 {[%emt 0:00:11]} 5. Nf3 {[%emt 0:00:15]} Nf6 {[%emt 0:03:29]} 6. Bd3 {[%emt 0:00:38]} d5 {[%emt 0:09:09]} 7. Bg5 {[%emt 0:04:03]} dxe4 {[%emt 0:15:49]} 8. Bxf6 {[%emt 0:01:18]} Qxf6 {[%emt 0:08:28]} 9. Bxe4 {[%emt 0:01:28]} Bb4+ {[%emt 0:01:00]} 10. c3 {[%emt 0:00:38]} Bc5 {[%emt 0:03:26]} 11. O-O {[%emt 0:09:12]} Bg4 {[%emt 0:04:08]} 12. h3 {[%emt 0:03:04]} Bh5 {[%emt 0:03:20]} 13. Qd5 {[%emt 0:05:44]} Bb6 {[%emt 0:00:42]} 14. Nbd2 {[%emt 0:03:55]} O-O {[%emt 0:04:06]} 15. Nc4 {[%emt 0:07:40]} Rad8 {[%emt 0:04:25]} 16. Qb5 {[%emt 0:04:53]} Qf4 {[%emt 0:01:08]} 17. Bxc6 {[%emt 0:03:22]} bxc6 {[%emt 0:00:22]} 18. Qxe5 {[%emt 0:01:45]} Qxc4 {[%emt 0:03:31]} 19. Qxh5 {[%emt 0:00:21]} Qe2 {[%emt 0:03:58]} 20. Qh4 {[%emt 0:10:27]} Qxb2 {[%emt 0:04:48]} 21. Ng5 {[%emt 0:03:06]} h6 {[%emt 0:03:26]} 22. Ne4 {[%emt 0:07:40]} f5 {[%emt 0:02:47]} 23. Ng3 {[%emt 0:05:10]} Bxf2+ {[%emt 0:00:27]} 24. Rxf2 {[%emt 0:00:32]} Qxa1+ {[%emt 0:00:08]} 25. Kh2 {[%emt 0:00:53]} Rd5 {[%emt 0:12:37]} 26. Rf3 {[%emt 0:05:10]} Qxa2 {[%emt 0:01:21]} 27. Nh5 {[%emt 0:05:14]} Rd2 {[%emt 0:02:49]} 28. Rg3 {[%emt 0:01:25]} Rf7 {[%emt 0:05:39]} 29. Nf6+ {[%emt 0:02:15]} Rxf6 {[%emt 0:00:38]} 30. Qxf6 {[%emt 0:00:35]} Rxg2+ {[%emt 0:00:02]} 31. Rxg2 {[%emt 0:00:19]} Qxg2+ {[%emt 0:00:07]} 0-1

[Event "4th ChessMates Murmansk 2020"]
[Site "Murmansk"]
[Date "2020.03.13"]
[Round "1.8"]
[White "Smirnova, Jekaterina"]
[Black "Fougerat, Emma"]
[Result "1/2-1/2"]
[ECO "A34"]
[WhiteElo "1439"]
[BlackElo "1668"]
[Annotator "NA RC"]
[PlyCount "38"]
[EventDate "2020.03.13"]
[EventType "team-tourn"]
[EventCountry "RUS"]
[SourceTitle "playchess.com"]
[Source "ChessBase"]
[SourceQuality "1"]
[TimeControl "5400+30"]

1. c4 {[%emt 0:00:00]} c5 {[%emt 0:00:02]} 2. Nc3 {[%emt 0:00:00]} Nf6 {[%emt 0:00:43]} 3. Nf3 {[%emt 0:00:15]} g6 {[%emt 0:01:44]} 4. d3 {[%emt 0:00:34]} Bg7 {[%emt 0:00:53]} 5. e4 {[%emt 0:00:11]} d6 {[%emt 0:01:02]} 6. Be2 {[%emt 0:00:06]} O-O {[%emt 0:01:35]} 7. O-O {[%emt 0:00:26]} Nc6 {[%emt 0:02:16]} 8. Be3 {[%emt 0:03:17]} a6 {[%emt 0:04:39]} 9. h3 {[%emt 0:04:13]} Rb8 {[%emt 0:03:36]} 10. a4 {[%emt 0:01:51]} Bd7 {[%emt 0:01:43]} 11. Qd2 {[%emt 0:03:19]} Re8 {[%emt 0:02:24]} 12. Nh4 {[%emt 0:05:18]} Na5 {[%emt 0:08:50]} 13. Bd1 {[%emt 0:06:54]} Nc6 {[%emt 0:25:46]} 14. f4 {[%emt 0:02:24]} e6 {[%emt 0:01:25]} 15. Nf3 {[%emt 0:00:23]} Qc7 {[%emt 0:03:10]} 16. Kh1 {[%emt 0:02:50]} Nb4 {[%emt 0:03:27]} 17. e5 {[%emt 0:24:27]} Nh5 {[%emt 0:13:36]} 18. Kg1 {[%emt 0:08:37]} Ng3 {[%emt 0:04:18]} 19. Re1 {[%emt 0:04:48]} Nf5 {[%emt 0:03:57]} 1/2-1/2

[Event "4th ChessMates Murmansk 2020"]
[Site "Murmansk"]
[Date "2020.03.13"]
[Round "1.9"]
[White "Matsumura, Cocoro"]
[Black "Mertins, Ostap"]
[Result "1-0"]
[ECO "B90"]
[WhiteElo "1896"]
[BlackElo "1375"]
[Annotator "NA RC"]
[PlyCount "45"]
[EventDate "2020.03.13"]
[EventType "team-tourn"]
[EventCountry "RUS"]
[SourceTitle "playchess.com"]
[Source "ChessBase"]
[SourceQuality "1"]
[TimeControl "5400+30"]

1. e4 {[%emt 0:00:00]} c5 {[%emt 0:00:00]} 2. Nf3 {[%emt 0:00:00]} d6 {[%emt 0:00:00]} 3. d4 {[%emt 0:00:00]} cxd4 {[%emt 0:00:18]} 4. Nxd4 {[%emt 0:00:00]} Nf6 {[%emt 0:00:14]} 5. Nc3 {[%emt 0:00:03]} a6 {[%emt 0:00:26]} 6. f3 {[%emt 0:00:10]} Qc7 {[%emt 0:01:44]} 7. Be3 {[%emt 0:00:55]} Nbd7 {[%emt 0:01:34]} 8. Qd2 {[%emt 0:01:43]} e6 {[%emt 0:01:12]} 9. O-O-O {[%emt 0:01:11]} b6 {[%emt 0:05:54]} 10. g4 {[%emt 0:03:14]} h6 {[%emt 0:01:44]} 11. h4 {[%emt 0:01:52]} Be7 {[%emt 0:01:51]} 12. Bh3 {[%emt 0:03:35]} Ne5 {[%emt 0:02:01]} 13. g5 {[%emt 0:02:42]} hxg5 {[%emt 0:05:47]} 14. hxg5 {[%emt 0:01:46]} Nh5 {[%emt 0:04:48]} 15. f4 {[%emt 0:10:06]} Nc4 {[%emt 0:02:05]} 16. Qf2 {[%emt 0:04:23]} Bb7 {[%emt 0:03:20]} 17. g6 {[%emt 0:01:55]} Nxe3 {[%emt 0:10:22]} 18. gxf7+ {[%emt 0:00:22]} Kxf7 {[%emt 0:00:33]} 19. Bxe6+ {[%emt 0:01:05]} Ke8 {[%emt 0:00:58]} 20. Qxe3 {[%emt 0:00:45]} Bc8 {[%emt 0:01:59]} 21. Bf5 {[%emt 0:01:12]} Bxf5 {[%emt 0:02:11]} 22. Nxf5 {[%emt 0:00:11]} Nf6 {[%emt 0:03:59]} 23. Rxh8+ {[%emt 0:00:08]} 1-0

[Event "4th ChessMates Murmansk 2020"]
[Site "Murmansk"]
[Date "2020.03.13"]
[Round "1.14"]
[White "Vetrov, Ivan"]
[Black "Timoshenko, Fedor"]
[Result "1-0"]
[ECO "D10"]
[WhiteElo "1799"]
[BlackElo "1621"]
[Annotator "NA RC"]
[PlyCount "71"]
[EventDate "2020.03.13"]
[EventType "team-tourn"]
[EventCountry "RUS"]
[SourceTitle "playchess.com"]
[Source "ChessBase"]
[SourceQuality "1"]
[TimeControl "5400+30"]

1. d4 {[%emt 0:00:00]} d5 {[%emt 0:00:00]} 2. c4 {[%emt 0:00:00]} c6 {[%emt 0:00:00]} 3. cxd5 {[%emt 0:02:02]} cxd5 {[%emt 0:01:05]} 4. Nc3 {[%emt 0:00:08]} Nf6 {[%emt 0:00:30]} 5. Nf3 {[%emt 0:00:33]} Nc6 {[%emt 0:00:48]} 6. Bf4 {[%emt 0:05:37]} e6 {[%emt 0:04:59]} 7. e3 {[%emt 0:00:44]} Bb4 {[%emt 0:03:40]} 8. Bd3 {[%emt 0:01:56]} O-O {[%emt 0:03:16]} 9. O-O {[%emt 0:00:14]} Nh5 {[%emt 0:01:20]} 10. Bg5 {[%emt 0:01:42]} Be7 {[%emt 0:02:29]} 11. Bxe7 {[%emt 0:01:29]} Qxe7 {[%emt 0:00:27]} 12. Ne5 {[%emt 0:01:16]} g6 {[%emt 0:09:54]} 13. Nxc6 {[%emt 0:03:09]} bxc6 {[%emt 0:00:14]} 14. Na4 {[%emt 0:01:43]} f6 {[%emt 0:03:23]} 15. Rc1 {[%emt 0:02:43]} Bd7 {[%emt 0:02:22]} 16. Qd2 {[%emt 0:11:24]} Ng7 {[%emt 0:07:10]} 17. Nc5 {[%emt 0:03:41]} e5 {[%emt 0:05:23]} 18. Nxd7 {[%emt 0:07:42]} Qxd7 {[%emt 0:00:13]} 19. dxe5 {[%emt 0:00:01]} fxe5 {[%emt 0:00:09]} 20. Qc3 {[%emt 0:00:04]} e4 {[%emt 0:09:45]} 21. Bc2 {[%emt 0:00:46]} Rf5 {[%emt 0:13:39]} 22. Ba4 {[%emt 0:01:50]} Raf8 {[%emt 0:01:20]} 23. Qxc6 {[%emt 0:01:18]} Qe7 {[%emt 0:02:50]} 24. Bb3 {[%emt 0:04:38]} Qg5 {[%emt 0:01:57]} 25. Rcd1 {[%emt 0:02:19]} Kh8 {[%emt 0:01:25]} 26. Bxd5 {[%emt 0:09:11]} Nh5 {[%emt 0:05:27]} 27. Bxe4 {[%emt 0:01:11]} Rc5 {[%emt 0:03:36]} 28. Qd6 {[%emt 0:00:26]} Kg7 {[%emt 0:03:31]} 29. Rd5 {[%emt 0:01:46]} Rxd5 {[%emt 0:00:21]} 30. Qxd5 {[%emt 0:00:04]} Qe7 {[%emt 0:02:00]} 31. Bf3 {[%emt 0:00:45]} Rd8 {[%emt 0:01:12]} 32. Qc4 {[%emt 0:00:20]} Nf6 {[%emt 0:00:44]} 33. Rc1 {[%emt 0:00:15]} Rd7 {[%emt 0:00:57]} 34. h3 {[%emt 0:00:27]} Qe5 {[%emt 0:00:27]} 35. Qc3 {[%emt 0:00:40]} Qe6 {[%emt 0:00:39]} 36. Bg4 {[%emt 0:00:13]} 1-0

[Event "4th ChessMates Murmansk 2020"]
[Site "Murmansk"]
[Date "2020.03.13"]
[Round "1.17"]
[White "Iarovoi, Dmitrii"]
[Black "Poliato, Irina"]
[Result "1-0"]
[ECO "D58"]
[WhiteElo "1346"]
[BlackElo "1588"]
[Annotator "NA RC"]
[PlyCount "125"]
[EventDate "2020.03.13"]
[EventType "team-tourn"]
[EventCountry "RUS"]
[SourceTitle "playchess.com"]
[Source "ChessBase"]
[SourceQuality "1"]
[TimeControl "5400+30"]

1. Nf3 {[%emt 0:00:00]} d5 {[%emt 0:00:00]} 2. d4 {[%emt 0:00:00]} Nf6 {[%emt 0:00:00]} 3. c4 {[%emt 0:00:18]} e6 {[%emt 0:00:06]} 4. Bg5 {[%emt 0:00:04]} Be7 {[%emt 0:00:17]} 5. Nc3 {[%emt 0:00:06]} O-O {[%emt 0:00:09]} 6. e3 {[%emt 0:00:10]} h6 {[%emt 0:00:06]} 7. Bh4 {[%emt 0:00:07]} b6 {[%emt 0:00:20]} 8. cxd5 {[%emt 0:00:30]} exd5 {[%emt 0:00:43]} 9. Bd3 {[%emt 0:00:17]} Be6 {[%emt 0:00:51]} 10. Rc1 {[%emt 0:00:43]} c5 {[%emt 0:07:41]} 11. O-O {[%emt 0:01:06]} Qc7 {[%emt 0:07:43]} 12. Bg3 {[%emt 0:00:26]} Qb7 {[%emt 0:00:25]} 13. Qe2 {[%emt 0:05:16]} c4 {[%emt 0:07:33]} 14. Bb1 {[%emt 0:00:18]} b5 {[%emt 0:04:44]} 15. e4 {[%emt 0:06:09]} b4 {[%emt 0:02:00]} 16. exd5 {[%emt 0:00:01]} Nxd5 {[%emt 0:01:46]} 17. Nxd5 {[%emt 0:05:07]} Bxd5 {[%emt 0:00:18]} 18. Rfe1 {[%emt 0:00:32]} Bxf3 {[%emt 0:09:30]} 19. gxf3 {[%emt 0:01:55]} f5 {[%emt 0:23:40]} 20. Qxe7 {[%emt 0:01:01]} Qxf3 {[%emt 0:02:31]} 21. Qe2 {[%emt 0:01:44]} Qxe2 {[%emt 0:00:33]} 22. Rxe2 {[%emt 0:00:01]} Nd7 {[%emt 0:05:13]} 23. Bd6 {[%emt 0:00:12]} Rf6 {[%emt 0:01:50]} 24. Bxb4 {[%emt 0:00:08]} Nb6 {[%emt 0:00:34]} 25. Re5 {[%emt 0:00:25]} g6 {[%emt 0:01:40]} 26. Rce1 {[%emt 0:00:05]} Rf7 {[%emt 0:03:47]} 27. d5 {[%emt 0:00:52]} Rd7 {[%emt 0:00:56]} 28. d6 {[%emt 0:00:01]} Rad8 {[%emt 0:01:10]} 29. Re7 {[%emt 0:00:22]} Nd5 {[%emt 0:00:45]} 30. Rxd7 {[%emt 0:00:10]} Rxd7 {[%emt 0:00:08]} 31. Bc5 {[%emt 0:00:29]} Kf7 {[%emt 0:01:47]} 32. Bc2 {[%emt 0:00:15]} Rb7 {[%emt 0:05:15]} 33. Re5 {[%emt 0:01:55]} Nf4 {[%emt 0:04:16]} 34. Re7+ {[%emt 0:00:53]} Rxe7 {[%emt 0:00:09]} 35. dxe7 {[%emt 0:00:03]} Nd5 {[%emt 0:01:14]} 36. Ba4 {[%emt 0:00:16]} Nxe7 {[%emt 0:00:14]} 37. Bxe7 {[%emt 0:00:01]} Kxe7 {[%emt 0:00:09]} 38. Bb5 {[%emt 0:00:06]} Kd6 {[%emt 0:01:07]} 39. Bxc4 {[%emt 0:00:06]} Kc5 {[%emt 0:00:09]} 40. Bf7 {[%emt 0:00:09]} g5 {[%emt 0:00:08]} 41. Kg2 {[%emt 0:00:10]} Kd4 {[%emt 0:00:34]} 42. Kf3 {[%emt 0:01:02]} a5 {[%emt 0:00:35]} 43. Bg6 {[%emt 0:00:18]} Ke5 {[%emt 0:00:13]} 44. a3 {[%emt 0:00:06]} Kd4 {[%emt 0:00:41]} 45. Bxf5 {[%emt 0:00:20]} Kc4 {[%emt 0:00:05]} 46. Be6+ {[%emt 0:00:09]} Kd3 {[%emt 0:00:13]} 47. b4 {[%emt 0:00:03]} axb4 {[%emt 0:00:08]} 48. axb4 {[%emt 0:00:08]} Kd4 {[%emt 0:00:08]} 49. Kg4 {[%emt 0:00:06]} Ke5 {[%emt 0:00:13]} 50. Kh5 {[%emt 0:00:46]} Kxe6 {[%emt 0:00:06]} 51. Kxh6 {[%emt 0:00:01]} g4 {[%emt 0:00:11]} 52. Kg5 {[%emt 0:00:04]} Kd5 {[%emt 0:00:16]} 53. Kxg4 {[%emt 0:00:06]} Kc4 {[%emt 0:00:02]} 54. h4 {[%emt 0:00:08]} Kxb4 {[%emt 0:00:04]} 55. h5 {[%emt 0:00:02]} Kc4 {[%emt 0:00:08]} 56. h6 {[%emt 0:00:06]} Kd3 {[%emt 0:00:04]} 57. h7 {[%emt 0:00:06]} Ke2 {[%emt 0:00:04]} 58. h8=Q {[%emt 0:00:09]} Kxf2 {[%emt 0:00:06]} 59. Qe5 {[%emt 0:00:09]} Kg2 {[%emt 0:00:06]} 60. Qe3 {[%emt 0:00:02]} Kh1 {[%emt 0:00:12]} 61. Qe2 {[%emt 0:00:03]} Kg1 {[%emt 0:00:14]} 62. Kg3 {[%emt 0:00:01]} Kh1 {[%emt 0:00:08]} 63. Qf1# {[%emt 0:00:01]} 1-0

[Event "4th ChessMates Murmansk 2020"]
[Site "Murmansk"]
[Date "2020.03.13"]
[Round "1.18"]
[White "Khmil, Fedor"]
[Black "Pereverzev, Valerii"]
[Result "1-0"]
[ECO "B33"]
[WhiteElo "1470"]
[BlackElo "1379"]
[Annotator "NA RC"]
[PlyCount "69"]
[EventDate "2020.03.13"]
[EventType "team-tourn"]
[EventCountry "RUS"]
[SourceTitle "playchess.com"]
[Source "ChessBase"]
[SourceQuality "1"]
[TimeControl "5400+30"]

1. e4 {[%emt 0:00:00]} c5 {[%emt 0:00:00]} 2. Nf3 {[%emt 0:00:00]} Nc6 {[%emt 0:00:00]} 3. d4 {[%emt 0:00:00]} cxd4 {[%emt 0:00:00]} 4. Nxd4 {[%emt 0:00:00]} Nf6 {[%emt 0:00:10]} 5. Nc3 {[%emt 0:00:00]} e5 {[%emt 0:00:11]} 6. Ndb5 {[%emt 0:00:00]} d6 {[%emt 0:00:07]} 7. Bg5 {[%emt 0:00:19]} a6 {[%emt 0:00:07]} 8. Na3 {[%emt 0:00:04]} b5 {[%emt 0:00:08]} 9. Nd5 {[%emt 0:00:11]} Be7 {[%emt 0:00:10]} 10. Bxf6 {[%emt 0:00:06]} Bxf6 11. c3 {[%emt 0:00:21]} O-O {[%emt 0:00:22]} 12. Be2 {[%emt 0:00:13]} Bg5 {[%emt 0:00:37]} 13. O-O {[%emt 0:00:16]} f5 {[%emt 0:00:33]} 14. f3 {[%emt 0:05:09]} Be6 {[%emt 0:04:04]} 15. Nc2 {[%emt 0:01:11]} Ne7 {[%emt 0:00:35]} 16. Ncb4 {[%emt 0:03:21]} Ng6 {[%emt 0:13:31]} 17. a4 {[%emt 0:09:14]} Qd7 {[%emt 0:05:13]} 18. axb5 {[%emt 0:05:47]} axb5 {[%emt 0:00:30]} 19. Qd3 {[%emt 0:01:53]} Rxa1 {[%emt 0:06:04]} 20. Rxa1 {[%emt 0:00:07]} fxe4 {[%emt 0:00:30]} 21. fxe4 {[%emt 0:00:48]} Qf7 {[%emt 0:05:16]} 22. Kh1 {[%emt 0:16:47]} Nh4 {[%emt 0:40:18]} 23. Rf1 {[%emt 0:05:29]} Qa7 {[%emt 0:00:37]} 24. Rxf8+ {[%emt 0:02:40]} Kxf8 {[%emt 0:00:10]} 25. g3 {[%emt 0:02:49]} Qf2 {[%emt 0:01:35]} 26. gxh4 {[%emt 0:01:18]} Bf4 {[%emt 0:01:43]} 27. Nxf4 {[%emt 0:01:03]} exf4 {[%emt 0:00:23]} 28. Qxd6+ {[%emt 0:05:21]} Kf7 {[%emt 0:00:07]} 29. Nd3 {[%emt 0:16:12]} Qxe2 {[%emt 0:01:55]} 30. Qxe6+ {[%emt 0:00:07]} Kxe6 {[%emt 0:00:46]} 31. Nxf4+ {[%emt 0:00:07]} Ke5 {[%emt 0:00:18]} 32. Nxe2 {[%emt 0:00:06]} Kxe4 {[%emt 0:00:14]} 33. Nd4 {[%emt 0:00:09]} b4 {[%emt 0:00:38]} 34. Ne6 {[%emt 0:00:09]} b3 {[%emt 0:01:18]} 35. Nc5+ {[%emt 0:00:05]} 1-0

[Event "4th ChessMates Murmansk 2020"]
[Site "Murmansk"]
[Date "2020.03.13"]
[Round "1.20"]
[White "Ivashevskiy, Artem"]
[Black "Bueckert, Lucy"]
[Result "0-1"]
[ECO "A21"]
[WhiteElo "1233"]
[BlackElo "1302"]
[Annotator "NA RC"]
[PlyCount "82"]
[EventDate "2020.03.13"]
[EventType "team-tourn"]
[EventCountry "RUS"]
[SourceTitle "playchess.com"]
[Source "ChessBase"]
[SourceQuality "1"]
[TimeControl "5400+30"]

1. c4 {[%emt 0:00:00]} e5 {[%emt 0:00:00]} 2. Nc3 {[%emt 0:00:00]} Bb4 {[%emt 0:00:20]} 3. Nf3 {[%emt 0:01:05]} Bxc3 {[%emt 0:00:59]} 4. bxc3 {[%emt 0:00:15]} e4 {[%emt 0:01:06]} 5. Nd4 {[%emt 0:00:19]} d5 {[%emt 0:01:26]} 6. cxd5 {[%emt 0:05:24]} Qxd5 {[%emt 0:02:08]} 7. Qc2 {[%emt 0:03:27]} c5 {[%emt 0:02:18]} 8. Nb3 {[%emt 0:00:47]} Bf5 {[%emt 0:02:02]} 9. e3 {[%emt 0:03:53]} Ne7 {[%emt 0:02:36]} 10. Ba3 {[%emt 0:03:56]} b6 {[%emt 0:02:19]} 11. d4 {[%emt 0:04:09]} exd3 {[%emt 0:00:58]} 12. Qd2 {[%emt 0:01:51]} Nbc6 {[%emt 0:02:26]} 13. Rc1 {[%emt 0:06:13]} Ne5 {[%emt 0:03:56]} 14. Rd1 {[%emt 0:09:50]} O-O {[%emt 0:02:29]} 15. h3 {[%emt 0:19:03]} Rfd8 {[%emt 0:04:16]} 16. Rg1 {[%emt 0:10:30]} Bxh3 {[%emt 0:02:59]} 17. f4 {[%emt 0:01:46]} Bg4 {[%emt 0:02:11]} 18. fxe5 {[%emt 0:02:12]} Bxd1 {[%emt 0:00:23]} 19. Kxd1 {[%emt 0:00:13]} Qxe5 {[%emt 0:00:41]} 20. c4 {[%emt 0:05:42]} Qh2 {[%emt 0:02:25]} 21. Qf2 {[%emt 0:00:50]} Qh5+ {[%emt 0:02:13]} 22. g4 {[%emt 0:01:45]} Qg6 {[%emt 0:01:13]} 23. Kd2 {[%emt 0:00:58]} Rab8 {[%emt 0:02:18]} 24. Nc1 {[%emt 0:00:35]} Qe4 {[%emt 0:02:49]} 25. Bxd3 {[%emt 0:01:16]} Qxc4 {[%emt 0:00:39]} 26. Qe2 {[%emt 0:04:46]} Nc6 {[%emt 0:02:05]} 27. Ke1 {[%emt 0:00:16]} Qc3+ {[%emt 0:00:36]} 28. Kf2 {[%emt 0:02:45]} Qxa3 {[%emt 0:00:33]} 29. Qc2 {[%emt 0:00:44]} g6 {[%emt 0:01:57]} 30. Bc4 {[%emt 0:01:25]} Ne5 {[%emt 0:03:25]} 31. Bb3 {[%emt 0:01:03]} Qb4 {[%emt 0:02:03]} 32. Ne2 {[%emt 0:01:51]} Nxg4+ {[%emt 0:01:34]} 33. Kf3 {[%emt 0:00:37]} Ne5+ {[%emt 0:02:53]} 34. Kf2 {[%emt 0:00:28]} Rd6 {[%emt 0:01:37]} 35. Kf1 {[%emt 0:03:40]} Rf6+ {[%emt 0:00:29]} 36. Nf4 {[%emt 0:00:59]} Rd8 {[%emt 0:02:45]} 37. Rg2 {[%emt 0:00:46]} Nd3 {[%emt 0:02:59]} 38. Kg1 {[%emt 0:01:46]} Nxf4 {[%emt 0:01:05]} 39. exf4 {[%emt 0:00:04]} Rxf4 {[%emt 0:01:55]} 40. Rxg6+ {[%emt 0:02:15]} Kh8 {[%emt 0:02:47]} 41. Rh6 {[%emt 0:00:34]} Qe1+ {[%emt 0:00:37]} 0-1

[Event "4th ChessMates Murmansk 2020"]
[Site "Murmansk"]
[Date "2020.03.13"]
[Round "1.24"]
[White "Shelezhonkova, Kseniya"]
[Black "Mamoshin, Oleg"]
[Result "1/2-1/2"]
[ECO "B23"]
[WhiteElo "1552"]
[BlackElo "1648"]
[Annotator "NA RC"]
[PlyCount "67"]
[EventDate "2020.03.13"]
[EventType "team-tourn"]
[EventCountry "RUS"]
[SourceTitle "playchess.com"]
[Source "ChessBase"]
[SourceQuality "1"]
[TimeControl "5400+30"]

1. e4 {[%emt 0:00:00]} c5 {[%emt 0:00:00]} 2. Nc3 {[%emt 0:00:00]} e6 {[%emt 0:00:00]} 3. f4 {[%emt 0:00:04]} d5 {[%emt 0:01:22]} 4. Nf3 {[%emt 0:04:55]} d4 {[%emt 0:07:12]} 5. Ne2 {[%emt 0:03:28]} Nf6 {[%emt 0:00:30]} 6. d3 {[%emt 0:05:18]} Be7 {[%emt 0:02:21]} 7. h3 {[%emt 0:02:59]} Nc6 {[%emt 0:10:53]} 8. g3 {[%emt 0:07:31]} Qc7 {[%emt 0:03:32]} 9. Bg2 {[%emt 0:00:28]} O-O {[%emt 0:03:52]} 10. O-O {[%emt 0:04:34]} Ne8 {[%emt 0:12:57]} 11. g4 {[%emt 0:09:18]} f5 {[%emt 0:08:51]} 12. g5 {[%emt 0:07:37]} g6 {[%emt 0:02:43]} 13. Qe1 {[%emt 0:10:07]} Ng7 {[%emt 0:02:09]} 14. Ng3 {[%emt 0:09:34]} Bd6 {[%emt 0:05:55]} 15. e5 {[%emt 0:04:19]} Be7 {[%emt 0:00:04]} 16. h4 {[%emt 0:03:29]} b6 {[%emt 0:03:05]} 17. a3 {[%emt 0:02:02]} Bb7 {[%emt 0:01:11]} 18. Kf2 {[%emt 0:00:30]} Kf7 {[%emt 0:05:35]} 19. Rh1 {[%emt 0:02:47]} Rh8 {[%emt 0:08:48]} 20. Rh3 {[%emt 0:00:43]} h5 {[%emt 0:07:53]} 21. Nf1 {[%emt 0:16:01]} Ne8 {[%emt 0:02:07]} 22. N1d2 {[%emt 0:00:33]} b5 {[%emt 0:00:32]} 23. c3 {[%emt 0:00:54]} Qd7 {[%emt 0:01:48]} 24. Qe2 {[%emt 0:01:00]} Nc7 {[%emt 0:02:07]} 25. Nb3 {[%emt 0:01:17]} dxc3 {[%emt 0:02:40]} 26. bxc3 {[%emt 0:00:08]} Rhd8 {[%emt 0:00:54]} 27. d4 {[%emt 0:01:36]} c4 {[%emt 0:00:44]} 28. Nbd2 {[%emt 0:01:08]} Nd5 {[%emt 0:00:08]} 29. Nb1 {[%emt 0:00:06]} Na5 {[%emt 0:00:54]} 30. Qb2 {[%emt 0:01:34]} Nb3 {[%emt 0:01:10]} 31. Ra2 {[%emt 0:00:01]} a5 {[%emt 0:00:28]} 32. Kg3 {[%emt 0:01:11]} a4 {[%emt 0:02:11]} 33. Rh1 {[%emt 0:00:17]} Nb6 {[%emt 0:00:52]} 34. Re1 {[%emt 0:00:28]} 1/2-1/2

[Event "4th ChessMates Murmansk 2020"]
[Site "Murmansk"]
[Date "2020.03.13"]
[Round "1.26"]
[White "Shilnikov, Anton"]
[Black "Morar, Kirill"]
[Result "1-0"]
[ECO "B43"]
[WhiteElo "1769"]
[BlackElo "1271"]
[Annotator "NA RC"]
[PlyCount "95"]
[EventDate "2020.03.13"]
[EventType "team-tourn"]
[EventCountry "RUS"]
[SourceTitle "playchess.com"]
[Source "ChessBase"]
[SourceQuality "1"]
[TimeControl "5400+30"]

1. e4 {[%emt 0:00:00]} c5 {[%emt 0:00:00]} 2. Nf3 {[%emt 0:00:00]} e6 {[%emt 0:00:00]} 3. d4 {[%emt 0:00:00]} cxd4 {[%emt 0:00:02]} 4. Nxd4 {[%emt 0:00:06]} a6 {[%emt 0:00:21]} 5. Nc3 {[%emt 0:00:44]} Qc7 {[%emt 0:00:20]} 6. Be2 {[%emt 0:00:29]} Nf6 {[%emt 0:00:23]} 7. O-O {[%emt 0:01:05]} Bb4 {[%emt 0:00:30]} 8. Qd3 {[%emt 0:02:16]} b5 {[%emt 0:02:19]} 9. Bf3 {[%emt 0:02:10]} Bxc3 {[%emt 0:11:12]} 10. bxc3 {[%emt 0:00:19]} Bb7 {[%emt 0:00:06]} 11. Ba3 {[%emt 0:08:57]} d6 {[%emt 0:01:43]} 12. Ne2 {[%emt 0:03:37]} d5 {[%emt 0:04:23]} 13. exd5 {[%emt 0:00:37]} Nxd5 {[%emt 0:02:04]} 14. Qd4 {[%emt 0:05:20]} f6 {[%emt 0:07:15]} 15. Bxd5 {[%emt 0:01:17]} Bxd5 {[%emt 0:00:46]} 16. Nf4 {[%emt 0:00:44]} Qc6 {[%emt 0:00:41]} 17. Rad1 {[%emt 0:03:58]} Kf7 {[%emt 0:32:19]} 18. Nxd5 {[%emt 0:00:53]} exd5 {[%emt 0:00:30]} 19. Qxd5+ {[%emt 0:02:40]} Qxd5 {[%emt 0:02:05]} 20. Rxd5 {[%emt 0:00:13]} Ra7 {[%emt 0:02:14]} 21. Rfd1 {[%emt 0:04:04]} Rc8 {[%emt 0:01:38]} 22. R1d3 {[%emt 0:13:38]} Rac7 {[%emt 0:09:19]} 23. Bd6 {[%emt 0:04:30]} Rc6 {[%emt 0:01:11]} 24. Bxb8 {[%emt 0:00:23]} Rxb8 {[%emt 0:00:07]} 25. Rd7+ {[%emt 0:00:10]} Kg8 {[%emt 0:00:56]} 26. Rg3 {[%emt 0:05:07]} g6 {[%emt 0:00:10]} 27. Rh3 {[%emt 0:04:54]} h5 {[%emt 0:00:19]} 28. Rg3 {[%emt 0:00:20]} f5 {[%emt 0:00:10]} 29. h4 {[%emt 0:01:46]} Re8 {[%emt 0:00:20]} 30. Rgd3 {[%emt 0:02:06]} Re1+ {[%emt 0:03:02]} 31. Kh2 {[%emt 0:00:05]} Rc4 {[%emt 0:02:11]} 32. g3 {[%emt 0:02:31]} Re2 {[%emt 0:00:43]} 33. Kg2 {[%emt 0:00:37]} Rc6 {[%emt 0:00:40]} 34. Ra7 {[%emt 0:00:24]} Re8 {[%emt 0:00:52]} 35. Rdd7 {[%emt 0:01:39]} Rec8 {[%emt 0:00:35]} 36. Rg7+ {[%emt 0:01:43]} Kf8 {[%emt 0:00:35]} 37. Rh7 {[%emt 0:00:56]} Kg8 {[%emt 0:00:10]} 38. Rag7+ {[%emt 0:00:35]} Kf8 {[%emt 0:00:13]} 39. Kf3 {[%emt 0:02:26]} Rxc3+ {[%emt 0:04:03]} 40. Kf4 {[%emt 0:00:06]} R3c4+ {[%emt 0:00:43]} 41. Kg5 {[%emt 0:00:22]} R4c6 {[%emt 0:02:20]} 42. Rxg6 {[%emt 0:02:08]} Rxg6+ {[%emt 0:00:35]} 43. Kxg6 {[%emt 0:00:05]} Rxc2 {[%emt 0:00:06]} 44. Rxh5 {[%emt 0:00:21]} Rxa2 {[%emt 0:00:07]} 45. Rxf5+ {[%emt 0:00:03]} Kg8 {[%emt 0:00:06]} 46. h5 {[%emt 0:00:07]} Ra1 {[%emt 0:00:28]} 47. h6 {[%emt 0:00:14]} Rh1 {[%emt 0:00:07]} 48. Rc5 {[%emt 0:00:27]} 1-0